{"text_format":"1","workbook":"xlsx","n_sheets":5,"sheets":["ورقة1","فاتوره بيع","فاتوره مشتريات","المخزن","Sheet3"],"not_rendered":{"charts":0,"images":2,"macros":1,"external_links":0,"defined_names":0,"comments":0,"pivot_tables":0},"unopened":[],"bounds":{"document_bytes":16777216,"sheet_cells":100000,"rows_first":2000,"rows_last":500,"rows_between":2000,"halvings":0,"cell_chars":16384,"cell_head_chars":4096},"cells_cut":0,"cells_raw":0,"read":"whole","date_system":"1900"}

{"sheet":"ورقة1","index":0,"n_rows":18,"n_cols":1,"rows_kept":18,"cut":false,"hidden":false,"merged":[]}
["مساعده فى برنامج محاسبه"]
[]
["https://www.officena.net/ib/topic/113851-%D9%85%D8%B3%D8%A7%D8%B9%D8%AF%D9%87-%D9%81%D9%89-%D8%A8%D8%B1%D9%86%D8%A7%D9%85%D8%AC-%D9%85%D8%AD%D8%A7%D8%B3%D8%A8%D9%87/"]
[]
[]
["لو سمحتم عملت نموذج فاتوره مشتريات وفاتوره مبيعات عاوز اخليهم يرحلو فى صفحه جديده ويعملو مخزن برجااااااااااء المساعده "]
[]
[]
["معلش هتفرق معايا كتير قوووووووى حط فى كل فاتوره تاريخ وخليها ترحل ورا بعض ولما ترحل  الفاتوره محتوياتها تبقي صفر  لانه هو برنامج محاسبه وعاوزه يتابع المخزون معاه"]
[]
[]
["بجد بشكرررررر حضرتك جدااااااااا  على حسن المساعده اللى هتفرق كتير فى شغلى .. وهكون طماع معاك وهطلب طلب كمان عاوز فاتوره المشتريات ترحل فى عمود وفاتوره المبيعات ترحل فى عمود تحتها يعنى يبقى فيه عمودين الوارد والصادر علشان اقدر اطلع الفرق بينهم فى صفحه جديده ويبقى البرنامج كمل معايا.. وهستاذنك عاوز اسم العميل يرحل معايا برض"]
[]
[" الوارد والصادر"]
[]
[]
["جد بشكرررررر حضرتك جدااااااااا  على حسن المساعده اللى هتفرق كتير فى شغلى .. "]
["الوارد والصادر علشان اقدر اطلع الفرق بينهم فى صفحه جديده ويبقى البرنامج كمل معايا.. وهستاذنك عاوز اسم العميل يرحل معايا برضه"]

{"sheet":"فاتوره بيع","index":1,"n_rows":66,"n_cols":15,"rows_kept":66,"cut":false,"hidden":false,"merged":[[0,9,0,12],[3,2,3,4]]}
[null,null,null,null,null,null,null,null,null,"شرائح الاسعار"]
[null,"مروه المحله"]
[null,null,null,null,null,null,null,null,null,null,3,4,5,6,7]
["ف. بيع","احمد محمد علي",{"$f":"NOW()","v":"2022-04-07T01:17:43.860"},null,null,null,null,null,"م","الصنف","عدد12ق","عدد50ق","عدد100ق","عدد300ق","عدد500ق"]
["الكود","الصبف","الكميه","السعر","القيمه",null,null,null,1,"مبيدات الحشرات الزاحفه",55,50,45,40,37]
[12,{"$f":"VLOOKUP(A6,$I$4:$O$78,2,0)","v":"منظف افران وجريلات"},10,{"$f":"VLOOKUP(A6,$I$4:$O$72,7,0)","v":35},{"$f":"C6*D6","v":350},null,null,null,2,"مبيد البق",60,54,51,46,42]
[25,"معطر ريسيبشن سيكرت",10,{"$f":"VLOOKUP(A7,$I$4:$O$72,5,0)","v":57},{"$f":"C7*D7","v":570},null,null,null,3,"رش العته",55,50,45,40,37]
[13,"منظف حمامات",10,37,370,null,null,null,4,"مبيد حشرات طائره ",32,30,27,25,24]
[13,"منظف حمامات",10,37,370,null,null,null,5,"رش ابراص",32,30,27,25,24]
[20,"ملمع خشب ",10,35,350,null,null,null,6,"مبيد سوس خشب +سوس بس +براغيت",55,50,45,40,37]
[17,"مزيل بقع",10,22,220,null,null,null,7,"مبيد قراض+عته+سمكه فضيه",55,50,45,40,37]
[null,null,null,null,0,null,null,null,8,"مبيد حشرات مركز عام لكل الحشرات  ",72,67,62,57,52]
[null,null,null,null,0,null,null,null,9,"عجينه فران ",26,24,21,20,18]
[null,null,null,null,0,null,null,null,10,"جيل ابراص ",45,43,40,37,33]
[null,null,null,null,0,null,null,null,11,"رش عنكبوت ",55,50,45,40,37]
[null,null,null,null,0,null,null,null,12,"منظف افران وجريلات",45,43,40,38,35]
[null,null,null,null,0,null,null,null,13,"منظف حمامات",41,39,37,35,33]
[null,null,null,null,0,null,null,null,14,"منظف وملمع ومعطر ارضيات ",61,59,57,55,53]
[null,null,null,null,0,null,null,null,15,"منظف مفروشات وسجاد",56,52,48,45,41]
[null,null,null,null,0,null,null,null,16,"مبيض غسيل ",57,55,53,51,49]
[null,null,null,null,{"$f":"SUM(E6:E20)","v":2230},null,null,null,17,"مزيل بقع",26,24,22,21,20]
[null,null,null,null,null,null,null,null,18,"مزيب دهون خفيف  ",28,26,24,22,20]
[null,null,null,null,null,null,null,null,19,"هاند ووش (غسول ايدين)",23,22,21,20,19]
[null,null,null,null,null,null,null,null,20,"ملمع خشب ",39,37,35,33,31]
[null,null,null,null,null,null,null,null,21,"ملمع زجاج",25,23,21,19,18]
[null,null,null,null,null,null,null,null,22,"ملمع نحاس ",36,34,31,29,28]
[null,null,null,null,null,null,null,null,23,"معطر بيد روم ",72,70,67,65,63]
[null,null,null,null,null,null,null,null,24,"معطر حمام باس روم ",51,49,46,44,42]
[null,null,null,null,null,null,null,null,25,"معطر ريسيبشن سيكرت",62,60,57,55,53]
[null,null,null,null,null,null,null,null,26,"معطر ملابس برينجو",51,49,46,44,42]
[null,null,null,null,null,null,null,null,27,"جيل غسيل برائحه التانجو او دوف",40,38,36,35,34]
[null,null,null,null,null,null,null,null,28,"شاور مارو ميكس",48,46,43,40,38]
[null,null,null,null,null,null,null,null,29,"شاور فواكه استوائية (فانيليا كانتالوب+باباى+كيوى)",40,38,36,34,33]
[null,null,null,null,null,null,null,null,30,"كره الغسيل الايونيه",80,78,75,73,71]
[null,null,null,null,null,null,null,null,31,"كلر ماجنيت (مناديل البهتان)",42,40,38,36,35]
[null,null,null,null,null,null,null,null,32,"مزيل بقع فوم ",52,50,47,42,40]
[null,null,null,null,null,null,null,null,34,"بودر تسليك الاحواض",30,28,26,24,22]
[null,null,null,null,null,null,null,null,35,"صابون سائل المواعين",15,14,13,12.5,11.5]
[null,null,null,null,null,null,null,null,36,"دويتو سيارات (ملمع +معطر )",83,81,78,76,74]
[null,null,null,null,null,null,null,null,37,"ملمع سيارات  ",45,43,41,39,37]
[null,null,null,null,null,null,null,null,38,"معطر سيارت ",45,43,41,39,37]
[null,null,null,null,null,null,null,null,39,"سيرام البشره ",120,118,115,113,110]
[null,null,null,null,null,null,null,null,40,"سيرام تساقط  ",120,118,115,113,110]
[null,null,null,null,null,null,null,null,41,"سيرام روموش",60,58,55,53,50]
[null,null,null,null,null,null,null,null,42,"زيت كرز",80,78,75,73,71]
[null,null,null,null,null,null,null,null,43,"زيت جوز الهند ",100,98,95,93,91]
[null,null,null,null,null,null,null,null,44,"كريم تفتيح ",70,68,65,64,63]
[null,null,null,null,null,null,null,null,45,"كريم دهن الحيه",60,58,55,53,51]
[null,null,null,null,null,null,null,null,46,"سيرام تصفيف ",110,108,105,103,100]
[null,null,null,null,null,null,null,null,47,"كريم ملخيه",60,58,55,53,51]
[null,null,null,null,null,null,null,null,48,"كريم ناموس",45,43,40,38,36]
[null,null,null,null,null,null,null,null,49,"حمام كريم مارڤا ",150,145,140,138,136]
[null,null,null,null,null,null,null,null,50,"سيرام الهايلو رونيك",80,78,75,73,71]
[null,null,null,null,null,null,null,null,51,"بى. كويين",90,88,85,83,80]
[null,null,null,null,null,null,null,null,52,"تونر للبشره",65,63,60,58,55]
[null,null,null,null,null,null,null,null,53,"غسول بشره بالفوم حجم 100ملي ",60,58,55,53,51]
[null,null,null,null,null,null,null,null,54,"مسحوق لاستر البلجيكي",65,63,60,58,55]
[null,null,null,null,null,null,null,null,55,"ارضيات نص لتر ",36,33,31,29,28]
[null,null,null,null,null,null,null,null,56,"سجاد نص لتر",31,29,27,25,23]
[null,null,null,null,null,null,null,null,57,"جل صحون كريمي حجم كيلو ",40,38,36,34]
[null,null,null,null,null,null,null,null,58,"جل صحون كريمي حجم نصف كيلو",25,23,21,20]
[null,null,null,null,null,null,null,null,59,"غسول بشره بالفوم حجم 200ملي",80,78,75,73,71]
[null,null,null,null,null,null,null,null,60,"بدي لوشن حجم 120 ملي",80,78,75,73,71]
[null,null,null,null,null,null,null,null,61,"جل غسيل وتعقيم الملابس الداخليه حجم لتر",62,59,56,53,50]
[null,null,null,null,null,null,null,null,62,"شامبو مارفا عبوه 250جرام ",80,75,70]
[null,null,null,null,null,null,null,null,63,"بلسم مارفا عبوه 250جرام ",80,75,70]

{"sheet":"فاتوره مشتريات","index":2,"n_rows":66,"n_cols":15,"rows_kept":66,"cut":false,"hidden":false,"merged":[[0,9,0,12],[3,2,3,4]]}
[null,null,null,null,null,null,null,null,null,"شرائح الاسعار"]
[]
[null,null,null,null,null,null,null,null,null,null,3,4,5,6,7]
["ف.شراء","محمود محمود سيد",{"$f":"NOW()","v":"2022-04-07T01:17:43.860"},null,null,null,null,null,"م","الصنف","عدد12ق","عدد50ق","عدد100ق","عدد300ق","عدد500ق"]
["الكود","الصبف","الكميه","السعر","القيمه",null,null,null,1,"مبيدات الحشرات الزاحفه",55,50,45,40,37]
[12,{"$f":"VLOOKUP(A6,$I$4:$O$78,2,0)","v":"منظف افران وجريلات"},100,{"$f":"VLOOKUP(A6,$I$4:$O$72,7,0)","v":35},{"$f":"C6*D6","v":3500},null,null,null,2,"مبيد البق",60,54,51,46,42]
[25,"معطر ريسيبشن سيكرت",100,{"$f":"VLOOKUP(A7,$I$4:$O$72,5,0)","v":57},{"$f":"C7*D7","v":5700},null,null,null,3,"رش العته",55,50,45,40,37]
[13,"منظف حمامات",100,37,3700,null,null,null,4,"مبيد حشرات طائره ",32,30,27,25,24]
[13,"منظف حمامات",100,37,3700,null,null,null,5,"رش ابراص",32,30,27,25,24]
[20,"ملمع خشب ",100,35,3500,null,null,null,6,"مبيد سوس خشب +سوس بس +براغيت",55,50,45,40,37]
[17,"مزيل بقع",100,22,2200,null,null,null,7,"مبيد قراض+عته+سمكه فضيه",55,50,45,40,37]
[null,null,null,null,0,null,null,null,8,"مبيد حشرات مركز عام لكل الحشرات  ",72,67,62,57,52]
[null,null,null,null,0,null,null,null,9,"عجينه فران ",26,24,21,20,18]
[null,null,null,null,0,null,null,null,10,"جيل ابراص ",45,43,40,37,33]
[null,null,null,null,0,null,null,null,11,"رش عنكبوت ",55,50,45,40,37]
[null,null,null,null,0,null,null,null,12,"منظف افران وجريلات",45,43,40,38,35]
[null,null,null,null,0,null,null,null,13,"منظف حمامات",41,39,37,35,33]
[null,null,null,null,0,null,null,null,14,"منظف وملمع ومعطر ارضيات ",61,59,57,55,53]
[null,null,null,null,0,null,null,null,15,"منظف مفروشات وسجاد",56,52,48,45,41]
[null,null,null,null,0,null,null,null,16,"مبيض غسيل ",57,55,53,51,49]
[null,null,null,null,{"$f":"SUM(E6:E20)","v":22300},null,null,null,17,"مزيل بقع",26,24,22,21,20]
[null,null,null,null,null,null,null,null,18,"مزيب دهون خفيف  ",28,26,24,22,20]
[null,null,null,null,null,null,null,null,19,"هاند ووش (غسول ايدين)",23,22,21,20,19]
[null,null,null,null,null,null,null,null,20,"ملمع خشب ",39,37,35,33,31]
[null,null,null,null,null,null,null,null,21,"ملمع زجاج",25,23,21,19,18]
[null,null,null,null,null,null,null,null,22,"ملمع نحاس ",36,34,31,29,28]
[null,null,null,null,null,null,null,null,23,"معطر بيد روم ",72,70,67,65,63]
[null,null,null,null,null,null,null,null,24,"معطر حمام باس روم ",51,49,46,44,42]
[null,null,null,null,null,null,null,null,25,"معطر ريسيبشن سيكرت",62,60,57,55,53]
[null,null,null,null,null,null,null,null,26,"معطر ملابس برينجو",51,49,46,44,42]
[null,null,null,null,null,null,null,null,27,"جيل غسيل برائحه التانجو او دوف",40,38,36,35,34]
[null,null,null,null,null,null,null,null,28,"شاور مارو ميكس",48,46,43,40,38]
[null,null,null,null,null,null,null,null,29,"شاور فواكه استوائية (فانيليا كانتالوب+باباى+كيوى)",40,38,36,34,33]
[null,null,null,null,null,null,null,null,30,"كره الغسيل الايونيه",80,78,75,73,71]
[null,null,null,null,null,null,null,null,31,"كلر ماجنيت (مناديل البهتان)",42,40,38,36,35]
[null,null,null,null,null,null,null,null,32,"مزيل بقع فوم ",52,50,47,42,40]
[null,null,null,null,null,null,null,null,34,"بودر تسليك الاحواض",30,28,26,24,22]
[null,null,null,null,null,null,null,null,35,"صابون سائل المواعين",15,14,13,12.5,11.5]
[null,null,null,null,null,null,null,null,36,"دويتو سيارات (ملمع +معطر )",83,81,78,76,74]
[null,null,null,null,null,null,null,null,37,"ملمع سيارات  ",45,43,41,39,37]
[null,null,null,null,null,null,null,null,38,"معطر سيارت ",45,43,41,39,37]
[null,null,null,null,null,null,null,null,39,"سيرام البشره ",120,118,115,113,110]
[null,null,null,null,null,null,null,null,40,"سيرام تساقط  ",120,118,115,113,110]
[null,null,null,null,null,null,null,null,41,"سيرام روموش",60,58,55,53,50]
[null,null,null,null,null,null,null,null,42,"زيت كرز",80,78,75,73,71]
[null,null,null,null,null,null,null,null,43,"زيت جوز الهند ",100,98,95,93,91]
[null,null,null,null,null,null,null,null,44,"كريم تفتيح ",70,68,65,64,63]
[null,null,null,null,null,null,null,null,45,"كريم دهن الحيه",60,58,55,53,51]
[null,null,null,null,null,null,null,null,46,"سيرام تصفيف ",110,108,105,103,100]
[null,null,null,null,null,null,null,null,47,"كريم ملخيه",60,58,55,53,51]
[null,null,null,null,null,null,null,null,48,"كريم ناموس",45,43,40,38,36]
[null,null,null,null,null,null,null,null,49,"حمام كريم مارڤا ",150,145,140,138,136]
[null,null,null,null,null,null,null,null,50,"سيرام الهايلو رونيك",80,78,75,73,71]
[null,null,null,null,null,null,null,null,51,"بى. كويين",90,88,85,83,80]
[null,null,null,null,null,null,null,null,52,"تونر للبشره",65,63,60,58,55]
[null,null,null,null,null,null,null,null,53,"غسول بشره بالفوم حجم 100ملي ",60,58,55,53,51]
[null,null,null,null,null,null,null,null,54,"مسحوق لاستر البلجيكي",65,63,60,58,55]
[null,null,null,null,null,null,null,null,55,"ارضيات نص لتر ",36,33,31,29,28]
[null,null,null,null,null,null,null,null,56,"سجاد نص لتر",31,29,27,25,23]
[null,null,null,null,null,null,null,null,57,"جل صحون كريمي حجم كيلو ",40,38,36,34]
[null,null,null,null,null,null,null,null,58,"جل صحون كريمي حجم نصف كيلو",25,23,21,20]
[null,null,null,null,null,null,null,null,59,"غسول بشره بالفوم حجم 200ملي",80,78,75,73,71]
[null,null,null,null,null,null,null,null,60,"بدي لوشن حجم 120 ملي",80,78,75,73,71]
[null,null,null,null,null,null,null,null,61,"جل غسيل وتعقيم الملابس الداخليه حجم لتر",62,59,56,53,50]
[null,null,null,null,null,null,null,null,62,"شامبو مارفا عبوه 250جرام ",80,75,70]
[null,null,null,null,null,null,null,null,63,"بلسم مارفا عبوه 250جرام ",80,75,70]

{"sheet":"المخزن","index":3,"n_rows":53,"n_cols":9,"rows_kept":53,"cut":false,"hidden":false,"merged":[]}
[]
["الكود","الصبف","الوارد","الصادر","السعر","القيمه","التاريخ","عملية","اسم العميل"]
[null,null,null,null,null,{"$f":"IF(C3<>\"\",C3*E3,D3*E3)","v":0}]
[null,null,null,null,null,0]
[null,null,null,null,null,0]
[null,null,null,null,null,0]
[null,null,null,null,null,0]
[null,null,null,null,null,0]
[null,null,null,null,null,0]
[null,null,null,null,null,0]
[null,null,null,null,null,0]
[null,null,null,null,null,0]
[null,null,null,null,null,0]
[null,null,null,null,null,0]
[null,null,null,null,null,0]
[null,null,null,null,null,0]
[null,null,null,null,null,0]
[null,null,null,null,null,0]
[null,null,null,null,null,0]
[null,null,null,null,null,0]
[null,null,null,null,null,0]
[null,null,null,null,null,0]
[null,null,null,null,null,0]
[null,null,null,null,null,0]
[null,null,null,null,null,0]
[null,null,null,null,null,0]
[null,null,null,null,null,0]
[null,null,null,null,null,0]
[null,null,null,null,null,0]
[null,null,null,null,null,0]
[null,null,null,null,null,0]
[null,null,null,null,null,0]
[null,null,null,null,null,0]
[null,null,null,null,null,0]
[null,null,null,null,null,0]
[null,null,null,null,null,0]
[null,null,null,null,null,0]
[null,null,null,null,null,0]
[null,null,null,null,null,0]
[null,null,null,null,null,0]
[null,null,null,null,null,0]
[null,null,null,null,null,0]
[null,null,null,null,null,0]
[null,null,null,null,null,0]
[null,null,null,null,null,0]
[null,null,null,null,null,0]
[null,null,null,null,null,0]
[null,null,null,null,null,0]
[null,null,null,null,null,0]
[null,null,null,null,null,0]
[null,null,null,null,null,0]
[null,null,null,null,null,0]
[null,null,null,null,null,0]

{"sheet":"Sheet3","index":4,"n_rows":0,"n_cols":0,"rows_kept":0,"cut":false,"hidden":false,"merged":[]}